{"text_format":"1","workbook":"xlsx","n_sheets":3,"sheets":["未収金目標及び具体的取組内容の一覧","消防-001-救急資器材に係る損害賠償金","消防‐002‐救急自動車に係る損害賠償金"],"not_rendered":{"charts":0,"images":0,"macros":0,"external_links":0,"defined_names":2,"comments":0,"pivot_tables":0},"unopened":[],"bounds":{"document_bytes":16777216,"sheet_cells":100000,"rows_first":2000,"rows_last":500,"rows_between":2000,"halvings":0,"cell_chars":16384,"cell_head_chars":4096},"cells_cut":0,"cells_raw":0,"read":"whole","date_system":"1900"}

{"sheet":"未収金目標及び具体的取組内容の一覧","index":0,"n_rows":7,"n_cols":4,"rows_kept":7,"cut":false,"hidden":false,"merged":[[0,0,0,3]]}
["未収金目標及び具体取組内容の一覧"]
[]
[null,null,null,"所属名：消防局"]
[]
["頁","整理\n番号","債権名","所管部署\n（連絡先）"]
[2,"001","救急資器材に係る損害賠償金","総務部総務課（06₋4393₋6028）"]
[4,"002","救急自動車に係る損害賠償金","総務部総務課（06₋4393₋6028）"]

{"sheet":"消防-001-救急資器材に係る損害賠償金","index":1,"n_rows":42,"n_cols":23,"rows_kept":42,"cut":false,"hidden":false,"merged":[[0,0,0,20],[2,0,2,1],[2,2,2,3],[2,5,2,7],[2,8,2,9],[2,12,2,13],[2,15,2,20],[24,1,24,9],[24,11,24,20],[4,0,4,20],[5,5,5,6],[5,9,5,20],[6,6,6,7],[6,9,6,20],[8,0,8,20],[9,19,9,20],[10,2,10,10],[10,11,10,17],[10,18,10,20],[23,0,23,10],[25,1,25,9],[25,11,25,20],[26,1,26,9],[26,11,26,20],[27,1,27,9],[27,11,27,20],[29,0,29,20],[30,19,30,20],[31,2,31,11],[31,12,31,19],[32,0,33,1],[32,11,33,11],[32,19,33,19],[32,20,33,20],[39,17,39,19],[40,17,41,19],[34,0,35,0],[36,0,37,0],[39,0,41,13],[39,15,40,15],[39,16,40,16]]}
["未収金目標及び具体取組内容調書"]
[]
["所属",null,"消防",null,"担当・事業所名","総務部総務課計理担当",null,null,"債権整理番号（３ケタ）",null,"001","債権区分","強制徴収公債権（強制公）",null,"債権名","救急資器材に係る損害賠償金"]
[]
["１．令和５年度の修正目標（＝未収金残高目標）の達成状況　…　いずれかの記号を入力　　　※修正目標 　…　当年度当初に、前年度末の未収金残高の結果を踏まえて、当初目標を修正したもの　"]
[null,null,null,null,null,null,null,null,null,"　　　　　　　　　（例）令和６年度修正目標＝令和６年度当初に、令和５年度末の未収金残高の結果を踏まえて、令和６年度当初目標を修正したもの"]
[null,null,"過年度",{"$f":"+IF(K17<=K16,\"A\",\"　\")","v":"A"},"現年度",{"$f":"+IF(R17<=R16,\"A\",\"　\")","v":"A"},"合計（過年度＋現年度）",null,{"$f":"+IF(U17<=U16,\"A\",\"　\")","v":"A"},"　 「A」 … 目標達成、「B1」 … 取組みは予定通り実施したが目標は未達、「B2」 … 取組みを予定通り実施できず目標も未達 、 「－」 …当年度中に新規発生した債権のため、前年度時点で目標未設定"]
[]
["２．未収金の推移（実績及び目標）　…　色付け箇所のみ、百円単位を四捨五入した、千円単位の整数　　※当初目標　…　前年度中に設定する当年度の目標　"]
[null,null,null,null,null,null,null,null,null,null,null,null,null,null,null,null,null,null,null,"（単位：千円）"]
[null,null,"過年度分",null,null,null,null,null,null,null,null,"現年度分",null,null,null,null,null,null,"合計"]
[null,null,"前年度からの\n調定繰越額","年度中の\n調定減少額","調定額","徴収額","不納欠損額","整理額","徴収率","整理率","未収金残高","調定額","徴収額","不納欠損額","整理額","徴収率","整理率","未収金残高","徴収率","整理率","未収金残高"]
[null,null,"ア\n＝前年度ケ”","イ\n＝ア-ウ\n（▲＝増加を表す）","ウ\n","エ\n\n","オ\n\n","カ\n＝イ＋エ＋オ","キ\n＝エ÷ウ","ク\n＝カ÷ア","ケ\n＝ウ-(エ＋オ）","ウ’","エ’","オ’","カ’\n＝エ’＋オ’\n","キ’\n＝エ’÷ウ’\n","ク’\n＝カ’÷ウ’\n","ケ’\n＝ウ’-\n(エ’＋オ’）","キ”\n＝（エ＋エ’）\n÷（ウ＋ウ’）","ク”\n＝（カ＋カ’）\n÷（ア＋ウ’）","ケ”\n＝ケ+ケ’"]
["Ａ","令和３年度\n実績",359,{"$f":"SUM(C14-E14)","v":0},359,0,0,{"$f":"SUM(D14,F14,G14)","v":0},{"$f":"IF(E14=0,\"－\",ROUND(F14/E14,3))","v":0},{"$f":"IF(C14=0,\"－\",ROUND(H14/C14,3))","v":0},{"$f":"SUM(E14-(F14+G14))","v":359},0,0,0,{"$f":"SUM(M14,N14)","v":0},{"$f":"IF(L14=0,\"－\",ROUND(M14/L14,3))","v":"－"},{"$f":"IF(L14=0,\"－\",ROUND(O14/L14,3))","v":"－"},{"$f":"SUM(L14-(M14+N14))","v":0},{"$f":"IF(E14+L14=0,\"－\",ROUND((F14+M14)/(E14+L14),3))","v":0},{"$f":"IF(C14+L14=0,\"－\",ROUND((H14+O14)/(C14+L14),3))","v":0},{"$f":"SUM(K14,R14)","v":359}]
["Ｂ","令和４年度\n実績",{"$f":"+U14","v":359},0,359,27,0,{"$f":"SUM(D15,F15,G15)","v":27},{"$f":"IF(E15=0,\"－\",ROUND(F15/E15,3))","v":7.4999999999999997E-2},7.4999999999999997E-2,{"$f":"SUM(E15-(F15+G15))","v":332},0,0,0,{"$f":"SUM(M15,N15)","v":0},"－","－",0,7.4999999999999997E-2,7.4999999999999997E-2,332]
["Ｃ","令和５年度\n修正目標",{"$f":"+U15","v":332},0,332,0,0,{"$f":"SUM(D16,F16,G16)","v":0},0,0,{"$f":"SUM(E16-(F16+G16))","v":332},0,0,0,0,"－","－",0,0,0,332]
["Ｄ","令和５年度\n実績",{"$f":"+U15","v":332},0,332,0,0,{"$f":"SUM(D17,F17,G17)","v":0},0,0,{"$f":"SUM(E17-(F17+G17))","v":332},0,0,0,0,"－","－",0,0,0,332]
["Ｅ","令和６年度\n当初目標",{"$f":"+U16","v":332},0,332,0,0,0,0,0,{"$f":"SUM(E18-(F18+G18))","v":332},0,0,0,0,"－","－",0,0,0,332]
["Ｆ","令和６年度\n修正目標",{"$f":"+U17","v":332},0,332,0,0,0,0,0,332,0,0,0,0,"－","－",0,0,0,332]
[]
[null,"（参考）未収金残高の中期目標"]
[null,"令和７年度末",272,"令和８年度末",212,"令和９年度末",152]
[]
["３．令和５年度の取組実績・課題・改善策など",null,null,null,null,null,null,null,null,null,null,"４．令和６年度の取組内容　…　「１．令和５年度の修正目標（＝未収金残高目標）の達成状況」及び「３．令和５年度の取組内容の検証など」の内容を踏まえて記載"]
[null,"令和５年度の取組実績",null,null,null,null,null,null,null,null,null,"未収金の解消に向けた取組"]
[null,"・令和５年６月に本人と連絡し、７月に面会。履行延期の特約等の申請書の提出を受け付け、現在の生活状況を把握し、債務弁済について話し合いを行った。",null,null,null,null,null,null,null,null,null,"・６月に面談予定。生活状況を把握し、今後の債務弁済について話し合いを行う。"]
[null,"課題と改善策",null,null,null,null,null,null,null,null,null,"未収金の発生抑制に向けた取組"]
[null,"【課題】\n・生活困窮状態で回収の目途がたたない。\n\n\n【改善策】\n・資力の回復を待ち、回収に努める。",null,null,null,null,null,null,null,null,null,"・\n・\n・"]
[]
["５．令和５年度決算見込における未収金実績の状況　（区分別の未収債権の件数・未収金残高、債務者数）　…　未収債権の件数及び債務者数については、色付け箇所のみ、整数で入力。未収金残高については、色付け箇所のみ、百円単位を四捨五入した、千円単位の整数で入力"]
[null,null,null,null,null,null,null,null,null,null,null,null,null,null,null,null,null,null,null,"（残高の単位：千円）"]
[null,null,"回収債権",null,null,null,null,null,null,null,null,null,"整理債権",null,null,null,null,null,null,null,"合計"]
["分類",null,"①","②","③","④","⑤","⑥","⑦","⑧","⑨",null,"⑩","⑪","⑫","⑬","⑭","⑮","⑯",null,"\n　残高の合計\n＝ 上記２のＤ\n　 （令５実績）\n　 のケ及びケ’\n\n※ 残高の数字の\n　一致を確認の\n　上、提出。\n　ただし四捨五入\n　に伴う不一致の\n　場合は除く。\n　（その場合は、\n　不一致となった\n　合計欄のセルを\n　黄色く塗りつぶ\n　して提出）"]
[null,null,"滞納発生直後のもの\n（督促状未送付のもの）","督促状送付後、\n各種催告中\n又は\n納付交渉中のもの","督促状送付後、\n各種処分に向けて、財産調査中\n又は\n行方不明等で所在など調査中\n又は\n個人債務者が死亡したため、相続人調査中のもの","【強制公】\n差押手続中のもの\n又は\n交付要求中のもの\n\n【非・私】\n債務名義取得のため法的手続中のもの\n","【強制公】\n差押え後、\n換価手続中\n又は\n換価予定のもの\n\n【非・私】\n債務名義の取得後、\n強制執行中\n又は\n強制執行予定のもの\n","換価猶予等又は履行延期の特約等又は分納誓約により、\n分割納付中であり、\n現在の分割納付額で、10年以内の完納見込があるもの","換価猶予等又は履行延期の特約等又は分納誓約により、\n分割納付中だが、\n現在の分割納付額では、完納まで10年以上要するもの","換価猶予等又は履行延期の特約等により、\n債務者の資力回復を待つため、納付を猶予（期限延長）しているもの","換価猶予等又は履行延期の特約等又は分納誓約を行ったが、\n分割納付の履行が滞り、\n再度、納付交渉中のもの",null,"【強制公】\n差押えを行ったが、換価見込のないもの\n又は\n換価済だが、未収金が残り、回収見込みがないもの\n\n【非・私】\n債務名義を取得したが、債務者の財産少額により、強制執行見込のないもの","所在など調査後なお行方不明等\n又は\n相続人調査後なお相続人未確定\n若しくは\n相続人不存在確定だが、\n停止の判断に至れていないもの","債務者の代理人から債務整理の受任通知が届いているもの\n又は\n債務者が破産手続中のもの","債務者が破産免責決定を受けたもの","【強制公】\n法に基づく滞納処分の停止の決議を行っているもの\n\n【非・私】\n法に基づく徴収停止の決議を行っているもの\n","【強制公】\n債務者が生活困窮中だが、債権の特性上、停止の決議を行えないもの\n\n【非・私】\n債務者が無資力だが、納付交渉に応じず、履行延期の特約等を行えないもの","消滅時効期間が経過しているもの"]
["過年度","未収債権\nの件数",null,null,null,null,null,null,null,1,null,{"$f":"SUM(C35:K35)","v":1},null,null,null,null,null,null,null,{"$f":"SUM(M35:S35)","v":0},{"$f":"SUM(T35,L35)","v":1},null,{"$f":"+IF(C35>0,\"過年度で①督促状未送付は原則起こりませんので、誤りが無いか確認をお願いします。\",\"\")","v":""}]
[null,"未収金\n残高",null,null,null,null,null,null,null,332,null,{"$f":"SUM(C36:K36)","v":332},null,null,null,null,null,null,null,{"$f":"SUM(M36:S36)","v":0},{"$f":"SUM(L36,T36)","v":332}]
["現年度","未収債権\nの件数",null,null,null,null,null,null,null,null,null,{"$f":"SUM(C37:K37)","v":0},null,null,null,null,null,null,null,{"$f":"SUM(M37:S37)","v":0},{"$f":"SUM(L37,T37)","v":0},null,{"$f":"+IF(S37>0,\"現年度で⑯消滅時効期間経過は原則起こりませんので、誤りが無いか確認をお願いします。\",\"\")","v":""}]
[null,"未収金\n残高",null,null,null,null,null,null,null,null,null,{"$f":"SUM(C38:K38)","v":0},null,null,null,null,null,null,null,{"$f":"SUM(M38:S38)","v":0},{"$f":"SUM(L38,T38)","v":0}]
[]
["【未収債権の件数及び債務者数並びに分類の考え方】\n① 未収債権の件数は、原則、調定件数とする。調定をまとめて行っている場合は、事実上の債権の件数とする。 （例：毎月の定期給付債権の場合、１人の債務者につき、１年間で12件の債権が発生していることとなる。）\n② １つの債権に、連帯債務者や連帯保証人が設定されている場合であっても、調査票上、未収債権の件数は１件、債務者数は１人と考え、３の表は、未収債権の状況の進捗が最も進んでいる者の状況で分類する。\n③ 債務者が死亡した場合で、相続人が複数いる場合、相続割合に従い、債務が相続される （債務が分割して相続される） が、調査票上、未収債権の件数は１件、債務者数は１人と考える。\n　　それぞれの相続人で、未収債権の状況が異なっている場合、３の表は、相続された債務額の最も大きい相続人の状況で分類する。同額の場合は、未収債権の状況の進捗が最も進んでいる者の状況で分類する。\n※ 未収債権の進捗状況　…　① → ② → ③　⇒　回収債権 ： （④ → ⑤） 又は ⑥ 又は ⑦ 又は ⑧ 又は ⑨　／　整理債権 ： ｛ ｛⑩ 又は ⑪ 又は （⑫ → ⑬） ｝ → ⑭ ｝ 又は ⑮ → ⑯",null,null,null,null,null,null,null,null,null,null,null,null,null,null,"　令和５年度\n　決算見込に\n　おける\n　債務者数",1,"令和５年度決算見込における\n未収債権の件数（過年度＋現年度）",null,null,{"$f":"SUM(U35,U37)","v":1}]
[null,null,null,null,null,null,null,null,null,null,null,null,null,null,null,null,null,"令和５年度決算見込における\n未収金残高（過年度＋現年度）\n＝ 上記２のＤ（ 令５実績）のケ”",null,null,{"$f":"SUM(U36,U38)","v":332}]
[null,null,null,null,null,null,null,null,null,null,null,null,null,null,null,null,"人"]

{"sheet":"消防‐002‐救急自動車に係る損害賠償金","index":2,"n_rows":42,"n_cols":23,"rows_kept":42,"cut":false,"hidden":false,"merged":[[0,0,0,20],[2,0,2,1],[2,2,2,3],[2,5,2,7],[2,8,2,9],[2,12,2,13],[2,15,2,20],[24,1,24,9],[24,11,24,20],[4,0,4,20],[5,5,5,6],[5,9,5,20],[6,6,6,7],[6,9,6,20],[8,0,8,20],[9,19,9,20],[10,2,10,10],[10,11,10,17],[10,18,10,20],[23,0,23,10],[25,1,25,9],[25,11,25,20],[26,1,26,9],[26,11,26,20],[27,1,27,9],[27,11,27,20],[29,0,29,20],[30,19,30,20],[31,2,31,11],[31,12,31,19],[32,0,33,1],[32,11,33,11],[32,19,33,19],[32,20,33,20],[39,17,39,19],[40,17,41,19],[34,0,35,0],[36,0,37,0],[39,0,41,13],[39,15,40,15],[39,16,40,16]]}
["未収金目標及び具体取組内容調書"]
[]
["所属",null,"消防局",null,"担当・事業所名","総務部総務課計理担当",null,null,"債権整理番号（３ケタ）",null,"002","債権区分","私債権",null,"債権名","救急自動車に係る損害賠償金"]
[]
["１．令和５年度の修正目標（＝未収金残高目標）の達成状況　…　いずれかの記号を入力　　　※修正目標 　…　当年度当初に、前年度末の未収金残高の結果を踏まえて、当初目標を修正したもの　"]
[null,null,null,null,null,null,null,null,null,"　　　　　　　　　（例）令和６年度修正目標＝令和６年度当初に、令和５年度末の未収金残高の結果を踏まえて、令和６年度当初目標を修正したもの"]
[null,null,"過年度",{"$f":"+IF(K17<=K16,\"A\",\"　\")","v":"A"},"現年度","－","合計（過年度＋現年度）",null,"－","　 「A」 … 目標達成、「B1」 … 取組みは予定通り実施したが目標は未達、「B2」 … 取組みを予定通り実施できず目標も未達 、 「－」 …当年度中に新規発生した債権のため、前年度時点で目標未設定"]
[]
["２．未収金の推移（実績及び目標）　…　色付け箇所のみ、百円単位を四捨五入した、千円単位の整数　　※当初目標　…　前年度中に設定する当年度の目標　"]
[null,null,null,null,null,null,null,null,null,null,null,null,null,null,null,null,null,null,null,"（単位：千円）"]
[null,null,"過年度分",null,null,null,null,null,null,null,null,"現年度分",null,null,null,null,null,null,"合計"]
[null,null,"前年度からの\n調定繰越額","年度中の\n調定減少額","調定額","徴収額","不納欠損額","整理額","徴収率","整理率","未収金残高","調定額","徴収額","不納欠損額","整理額","徴収率","整理率","未収金残高","徴収率","整理率","未収金残高"]
[null,null,"ア\n＝前年度ケ”","イ\n＝ア-ウ\n（▲＝増加を表す）","ウ\n","エ\n\n","オ\n\n","カ\n＝イ＋エ＋オ","キ\n＝エ÷ウ","ク\n＝カ÷ア","ケ\n＝ウ-(エ＋オ）","ウ’","エ’","オ’","カ’\n＝エ’＋オ’\n","キ’\n＝エ’÷ウ’\n","ク’\n＝カ’÷ウ’\n","ケ’\n＝ウ’-\n(エ’＋オ’）","キ”\n＝（エ＋エ’）\n÷（ウ＋ウ’）","ク”\n＝（カ＋カ’）\n÷（ア＋ウ’）","ケ”\n＝ケ+ケ’"]
["Ａ","令和３年度\n実績",0,{"$f":"SUM(C14-E14)","v":0},null,null,null,{"$f":"SUM(D14,F14,G14)","v":0},{"$f":"IF(E14=0,\"－\",ROUND(F14/E14,3))","v":"－"},{"$f":"IF(C14=0,\"－\",ROUND(H14/C14,3))","v":"－"},{"$f":"SUM(E14-(F14+G14))","v":0},null,null,null,{"$f":"SUM(M14,N14)","v":0},{"$f":"IF(L14=0,\"－\",ROUND(M14/L14,3))","v":"－"},{"$f":"IF(L14=0,\"－\",ROUND(O14/L14,3))","v":"－"},{"$f":"SUM(L14-(M14+N14))","v":0},{"$f":"IF(E14+L14=0,\"－\",ROUND((F14+M14)/(E14+L14),3))","v":"－"},{"$f":"IF(C14+L14=0,\"－\",ROUND((H14+O14)/(C14+L14),3))","v":"－"},{"$f":"SUM(K14,R14)","v":0}]
["Ｂ","令和４年度\n実績",{"$f":"+U14","v":0},0,0,0,0,{"$f":"SUM(D15,F15,G15)","v":0},{"$f":"IF(E15=0,\"－\",ROUND(F15/E15,3))","v":"－"},"－",{"$f":"SUM(E15-(F15+G15))","v":0},110,30,0,{"$f":"SUM(M15,N15)","v":30},0.27300000000000002,0.27300000000000002,80,0.27300000000000002,0.27300000000000002,80]
["Ｃ","令和５年度\n修正目標",{"$f":"+U15","v":80},80,0,0,0,{"$f":"SUM(D16,F16,G16)","v":80},"－",1,{"$f":"SUM(E16-(F16+G16))","v":0},80,80,0,80,1,1,0,1,1,0]
["Ｄ","令和５年度\n実績",{"$f":"+U15","v":80},{"$f":"SUM(C17-E17)","v":0},80,80,0,{"$f":"SUM(D17,F17,G17)","v":80},1,1,{"$f":"SUM(E17-(F17+G17))","v":0},160,0,0,0,0,0,160,0.33300000000000002,0.33300000000000002,160]
["Ｅ","令和６年度\n当初目標",{"$f":"+U16","v":0},0,0,0,0,0,"－","－",{"$f":"SUM(E18-(F18+G18))","v":0},0,0,0,0,"－","－",0,"－","－",0]
["Ｆ","令和６年度\n修正目標",{"$f":"+U17","v":160},{"$f":"SUM(C19-E19)","v":0},160,160,0,160,1,1,0,0,0,0,0,"－","－",0,1,1,0]
[]
[null,"（参考）未収金残高の中期目標"]
[null,"令和７年度末",0,"令和８年度末",0,"令和９年度末",0]
[]
["３．令和５年度の取組実績・課題・改善策など",null,null,null,null,null,null,null,null,null,null,"４．令和６年度の取組内容　…　「１．令和５年度の修正目標（＝未収金残高目標）の達成状況」及び「３．令和５年度の取組内容の検証など」の内容を踏まえて記載"]
[null,"令和５年度の取組実績",null,null,null,null,null,null,null,null,null,"未収金の解消に向けた取組"]
[null,"令和６年３月に救急車の修理が完了し、債務額が決定したため、５月に納入通知書を送付。",null,null,null,null,null,null,null,null,null,"・令和６年６月中に督促状を送付。なお、支払われない場合は、催告を行う。債務者の資力を確認し、必要であれば分納による債権回収に努める。"]
[null,"課題と改善策",null,null,null,null,null,null,null,null,null,"未収金の発生抑制に向けた取組"]
[null,"【課題】\n・債務者に資力が無く、５年度中の支払いが出来ない。\n\n【改善策】\n・来年度に本人の生活状況を再確認し、必要であれば分納による債権回収を行う。",null,null,null,null,null,null,null,null,null,"・\n・\n・"]
[]
["５．令和５年度決算見込における未収金実績の状況　（区分別の未収債権の件数・未収金残高、債務者数）　…　未収債権の件数及び債務者数については、色付け箇所のみ、整数で入力。未収金残高については、色付け箇所のみ、百円単位を四捨五入した、千円単位の整数で入力"]
[null,null,null,null,null,null,null,null,null,null,null,null,null,null,null,null,null,null,null,"（残高の単位：千円）"]
[null,null,"回収債権",null,null,null,null,null,null,null,null,null,"整理債権",null,null,null,null,null,null,null,"合計"]
["分類",null,"①","②","③","④","⑤","⑥","⑦","⑧","⑨",null,"⑩","⑪","⑫","⑬","⑭","⑮","⑯",null,"\n　残高の合計\n＝ 上記２のＤ\n　 （令５実績）\n　 のケ及びケ’\n\n※ 残高の数字の\n　一致を確認の\n　上、提出。\n　ただし四捨五入\n　に伴う不一致の\n　場合は除く。\n　（その場合は、\n　不一致となった\n　合計欄のセルを\n　黄色く塗りつぶ\n　して提出）"]
[null,null,"滞納発生直後のもの\n（督促状未送付のもの）","督促状送付後、\n各種催告中\n又は\n納付交渉中のもの","督促状送付後、\n各種処分に向けて、財産調査中\n又は\n行方不明等で所在など調査中\n又は\n個人債務者が死亡したため、相続人調査中のもの","【強制公】\n差押手続中のもの\n又は\n交付要求中のもの\n\n【非・私】\n債務名義取得のため法的手続中のもの\n","【強制公】\n差押え後、\n換価手続中\n又は\n換価予定のもの\n\n【非・私】\n債務名義の取得後、\n強制執行中\n又は\n強制執行予定のもの\n","換価猶予等又は履行延期の特約等又は分納誓約により、\n分割納付中であり、\n現在の分割納付額で、10年以内の完納見込があるもの","換価猶予等又は履行延期の特約等又は分納誓約により、\n分割納付中だが、\n現在の分割納付額では、完納まで10年以上要するもの","換価猶予等又は履行延期の特約等により、\n債務者の資力回復を待つため、納付を猶予（期限延長）しているもの","換価猶予等又は履行延期の特約等又は分納誓約を行ったが、\n分割納付の履行が滞り、\n再度、納付交渉中のもの",null,"【強制公】\n差押えを行ったが、換価見込のないもの\n又は\n換価済だが、未収金が残り、回収見込みがないもの\n\n【非・私】\n債務名義を取得したが、債務者の財産少額により、強制執行見込のないもの","所在など調査後なお行方不明等\n又は\n相続人調査後なお相続人未確定\n若しくは\n相続人不存在確定だが、\n停止の判断に至れていないもの","債務者の代理人から債務整理の受任通知が届いているもの\n又は\n債務者が破産手続中のもの","債務者が破産免責決定を受けたもの","【強制公】\n法に基づく滞納処分の停止の決議を行っているもの\n\n【非・私】\n法に基づく徴収停止の決議を行っているもの\n","【強制公】\n債務者が生活困窮中だが、債権の特性上、停止の決議を行えないもの\n\n【非・私】\n債務者が無資力だが、納付交渉に応じず、履行延期の特約等を行えないもの","消滅時効期間が経過しているもの"]
["過年度","未収債権\nの件数",null,null,null,null,null,null,null,null,null,{"$f":"SUM(C35:K35)","v":0},null,null,null,null,null,null,null,{"$f":"SUM(M35:S35)","v":0},{"$f":"SUM(T35,L35)","v":0},null,{"$f":"+IF(C35>0,\"過年度で①督促状未送付は原則起こりませんので、誤りが無いか確認をお願いします。\",\"\")","v":""}]
[null,"未収金\n残高",null,null,null,null,null,null,null,null,null,{"$f":"SUM(C36:K36)","v":0},null,null,null,null,null,null,null,{"$f":"SUM(M36:S36)","v":0},{"$f":"SUM(L36,T36)","v":0}]
["現年度","未収債権\nの件数",1,null,null,null,null,null,null,null,null,{"$f":"SUM(C37:K37)","v":1},null,null,null,null,null,null,null,{"$f":"SUM(M37:S37)","v":0},{"$f":"SUM(L37,T37)","v":1},null,{"$f":"+IF(S37>0,\"現年度で⑯消滅時効期間経過は原則起こりませんので、誤りが無いか確認をお願いします。\",\"\")","v":""}]
[null,"未収金\n残高",160,null,null,null,null,null,null,null,null,{"$f":"SUM(C38:K38)","v":160},null,null,null,null,null,null,null,{"$f":"SUM(M38:S38)","v":0},{"$f":"SUM(L38,T38)","v":160}]
[]
["【未収債権の件数及び債務者数並びに分類の考え方】\n① 未収債権の件数は、原則、調定件数とする。調定をまとめて行っている場合は、事実上の債権の件数とする。 （例：毎月の定期給付債権の場合、１人の債務者につき、１年間で12件の債権が発生していることとなる。）\n② １つの債権に、連帯債務者や連帯保証人が設定されている場合であっても、調査票上、未収債権の件数は１件、債務者数は１人と考え、３の表は、未収債権の状況の進捗が最も進んでいる者の状況で分類する。\n③ 債務者が死亡した場合で、相続人が複数いる場合、相続割合に従い、債務が相続される （債務が分割して相続される） が、調査票上、未収債権の件数は１件、債務者数は１人と考える。\n　　それぞれの相続人で、未収債権の状況が異なっている場合、３の表は、相続された債務額の最も大きい相続人の状況で分類する。同額の場合は、未収債権の状況の進捗が最も進んでいる者の状況で分類する。\n※ 未収債権の進捗状況　…　① → ② → ③　⇒　回収債権 ： （④ → ⑤） 又は ⑥ 又は ⑦ 又は ⑧ 又は ⑨　／　整理債権 ： ｛ ｛⑩ 又は ⑪ 又は （⑫ → ⑬） ｝ → ⑭ ｝ 又は ⑮ → ⑯",null,null,null,null,null,null,null,null,null,null,null,null,null,null,"　令和５年度\n　決算見込に\n　おける\n　債務者数",1,"令和５年度決算見込における\n未収債権の件数（過年度＋現年度）",null,null,{"$f":"SUM(U35,U37)","v":1}]
[null,null,null,null,null,null,null,null,null,null,null,null,null,null,null,null,null,"令和５年度決算見込における\n未収金残高（過年度＋現年度）\n＝ 上記２のＤ（ 令５実績）のケ”",null,null,{"$f":"SUM(U36,U38)","v":160}]
[null,null,null,null,null,null,null,null,null,null,null,null,null,null,null,null,"人"]